bitfinex-derivatives/quotes_ETHF0:USTF0_20240910
["timestamp","ask_amount","ask_price","bid_price","bid_amount"]
[1725935174116,0.42713,2341.1,2340.9,0.3747]
[1725935176614,3.09712,2341.2,2340.9,0.3747]
[1725935177012,0.42712,2341.1,2340.9,0.3747]
[1725935182418,0.42714,2341.0,2340.9,0.3747]
[1725935182619,0.42714,2341.0,2340.8,0.42718]
[1725935182817,0.42714,2341.0,2340.7,0.42718]
[1725935183013,0.42714,2341.0,2340.8,0.42718]
[1725935183219,2.67,2340.9,2340.6,1.18921]
[1725935183419,2.67,2340.9,2340.7,0.4272]
[1725935183420,0.4031,2340.8,2340.7,0.4272]
[1725935183620,0.42718,2340.8,2340.6,1.18921]
[1725935184925,1.47094,2341.1,2340.6,1.18921]
[1725935184926,3.0731,2341.1,2340.7,0.42719]
[1725935185116,0.42715,2341.0,2340.8,0.42717]
[1725935185322,10.48978102,2341.0,2340.6,0.762]
[1725935185519,10.91692102,2341.0,2340.8,0.42717]
[1725935187025,10.91692102,2341.0,2340.6,0.762]
[1725935187026,0.42716,2340.9,2340.7,0.42719]
[1725935187430,10.91693102,2341.0,2340.8,0.42718]
[1725935188131,0.42716,2340.9,2340.7,0.42719]
[1725935188322,10.91694102,2341.0,2340.6,0.762]
[1725935189227,10.91694102,2341.0,2340.8,0.42718]
[1725935189527,10.48978102,2341.0,2340.6,0.762]
[1725935189724,10.91693102,2341.0,2340.8,0.42716]
[1725935189923,10.91693102,2341.0,2340.7,0.42718]
[1725935191025,0.42716,2340.9,2340.7,0.42718]
[1725935193628,0.79078,2340.8,2340.6,1.1892]
[1725935194131,0.42717,2340.9,2340.7,0.4272]
[1725935196828,10.48978102,2341.0,2340.8,0.42717]
[1725935196829,10.91693102,2341.0,2340.8,0.42717]
[1725935197031,0.42716,2340.9,2340.7,0.42718]
[1725935200937,10.48978102,2341.0,2340.8,0.42717]
[1725935201136,10.48978102,2341.0,2340.6,0.762]
[1725935201639,10.91693102,2341.0,2340.8,0.42717]
[1725935205041,0.42716,2340.9,2340.8,0.42717]
[1725935206028,10.91694102,2341.0,2340.8,0.42717]
[1725935207134,10.91694102,2341.0,2340.7,0.42719]
[1725935207135,0.42716,2340.9,2340.7,0.42719]
[1725935207332,10.48978102,2341.0,2340.9,0.42716]
[1725935207636,10.91693102,2341.0,2340.8,0.42717]
[1725935209242,10.48978102,2341.0,2340.8,0.42717]
[1725935209443,10.91694102,2341.0,2340.8,0.42717]
[1725935210238,0.42716,2340.9,2340.8,0.42717]
[1725935212436,10.48978102,2341.0,2340.8,0.42717]
[1725935212845,0.42716,2340.9,2340.8,0.42717]
[1725935213044,10.91694102,2341.0,2340.8,0.42717]
[1725935214041,0.42716,2340.9,2340.8,0.42717]
[1725935216945,10.48978102,2341.0,2340.7,1.12014935]
[1725935217252,10.91694102,2341.0,2340.8,0.42717]
[1725935217948,10.91692102,2341.0,2340.9,0.389]
[1725935219854,0.42718,2340.8,2340.6,1.91674935]
[1725935220054,11.71978102,2341.0,2340.6,1.48954935]
[1725935220358,0.42718,2340.8,2340.7,0.42719]
[1725935222053,0.42721,2340.6,2340.5,1.12014935]
[1725935222249,0.42723,2340.5,2340.4,1.12014935]
[1725935222450,1.18933,2340.5,2340.3,1.12014935]
[1725935222646,1.18933,2340.5,2340.3,1.54741935]
[1725935223247,1.18933,2340.5,2340.4,0.42725]
[1725935223248,0.7621,2340.5,2340.4,0.42725]
[1725935225752,0.42721,2340.7,2340.5,0.42723]
[1725935225951,0.42721,2340.7,2340.6,0.783]
[1725935226349,10.89311026,2340.7,2340.6,0.783]
[1725935228943,15.96790026,2340.7,2340.2,0.42728]
[1725935229153,0.42727,2340.3,2340.2,0.42728]
[1725935229455,0.42727,2340.3,2340.1,1.1276]
[1725935229646,0.42726,2340.4,2340.2,0.42728]
[1725935229843,0.3823,2340.3,2340.2,0.42728]
[1725935230453,0.42725,2340.5,2340.3,0.42726]
[1725935230653,0.42725,2340.4,2340.3,0.42726]
[1725935231957,0.3823,2340.5,2340.4,0.42725]
[1725935232151,0.42723,2340.6,2340.5,0.42723]
[1725935232466,0.42721,2340.7,2340.5,0.82803]
[1725935232656,0.42721,2340.6,2340.5,0.82803]
[1725935234962,0.42721,2340.6,2340.5,0.4008]
[1725935239659,0.42723,2340.5,2340.4,0.81474]
[1725935239960,0.42723,2340.5,2340.4,0.42724]
[1725935240158,0.42723,2340.5,2340.3,0.80715]
[1725935240364,0.3811,2340.4,2340.3,0.80715]
[1725935240566,0.80835,2340.4,2340.3,0.80717]
[1725935240963,0.80835,2340.4,2340.3,0.3799]
[1725935241467,0.80835,2340.4,2340.3,0.80717]
[1725935241661,0.80835,2340.4,2340.3,0.3799]
[1725935244370,0.80835,2340.4,2340.2,0.3891]
[1725935244371,0.42727,2340.3,2340.2,0.3891]
[1725935244771,0.42727,2340.3,2340.2,0.81639]
[1725935254577,0.80836,2340.4,2340.3,0.42727]
[1725935254770,0.80836,2340.4,2340.2,0.81637]
[1725935254771,0.42727,2340.3,2340.2,0.81637]
[1725935254978,0.42727,2340.3,2340.2,1.93651935]
[1725935255168,0.42727,2340.3,2340.2,0.81637]
[1725935259475,0.42727,2340.3,2340.2,1.93651935]
[1725935259677,0.42727,2340.3,2340.2,0.81637]
[1725935261383,0.42727,2340.3,2340.2,0.81639]
[1725935262988,0.42727,2340.3,2340.2,0.3891]
[1725935263881,0.42727,2340.3,2340.2,0.81639]
[1725935267282,0.42726,2340.4,2340.3,0.42727]
[1725935267477,1.44081,2340.5,2340.2,0.81638]
[1725935267478,0.42727,2340.3,2340.2,0.81638]
[1725935267889,0.42726,2340.4,2340.3,0.42727]
[1725935268083,0.42726,2340.4,2340.2,0.3891]
[1725935268084,0.42727,2340.3,2340.2,0.81638]
[1725935270189,1.44081,2340.5,2340.2,3.51765663]
[1725935270190,0.42726,2340.4,2340.2,3.51765663]
[1725935270387,0.42725,2340.4,2340.3,1.12014935]
[1725935270581,0.79994,2340.5,2340.3,1.12014935]
[1725935270790,0.79994,2340.5,2340.4,0.3633]
[1725935271292,0.79994,2340.5,2340.4,1.48344935]
[1725935272387,0.79994,2340.5,2340.4,0.3633]
[1725935272587,0.79994,2340.5,2340.4,1.48344935]
[1725935272789,0.79994,2340.5,2340.4,1.91069935]
[1725935272991,0.79994,2340.5,2340.4,1.48344935]
[1725935273788,0.79994,2340.5,2340.4,1.91069935]
[1725935273987,0.79994,2340.5,2340.4,1.48344935]
[1725935274282,0.3727,2340.5,2340.4,1.91069935]
[1725935274488,0.79993,2340.5,2340.4,1.48344935]
[1725935274996,0.79993,2340.5,2340.4,1.91069935]
[1725935275800,0.79993,2340.5,2340.4,1.48344935]
[1725935276397,0.79993,2340.5,2340.4,1.91069935]
[1725935277192,0.79993,2340.5,2340.4,0.79055]
[1725935277691,0.79993,2340.5,2340.4,0.3633]
[1725935278087,0.79993,2340.5,2340.4,0.79055]
[1725935278490,0.79993,2340.5,2340.4,1.48344935]
[1725935278695,0.79993,2340.5,2340.4,0.3633]
[1725935279096,0.79993,2340.5,2340.4,0.79055]
[1725935279599,0.79993,2340.5,2340.4,1.48344935]
[1725935279798,0.79993,2340.5,2340.3,1.12014935]
[1725935280004,0.42725,2340.4,2340.3,1.54740935]
[1725935280210,0.42725,2340.4,2340.3,1.12014935]
[1725935280397,0.42725,2340.4,2340.3,1.54741935]
[1725935282401,0.42725,2340.4,2340.3,3.12907324]
[1725935282698,0.79994,2340.5,2340.3,3.12907324]
[1725935282898,0.79994,2340.5,2340.3,1.54741935]
[1725935284507,0.79994,2340.5,2340.3,0.42727]
[1725935284705,0.3727,2340.5,2340.2,0.81638]
[1725935285003,0.3727,2340.5,2340.2,0.42728]
[1725935285004,0.42728,2340.3,2340.2,0.42728]
[1725935285199,0.42728,2340.3,2340.2,0.82148]
[1725935286509,0.42726,2340.4,2340.3,0.42727]
[1725935292419,0.42726,2340.4,2340.3,3.70953979]
[1725935293110,0.42726,2340.4,2340.3,2.10749403]
[1725935293413,0.42726,2340.4,2340.3,3.70954537]
[1725935298116,0.099,2340.8,2340.3,12.55112398]
[1725935298312,0.3696,2340.8,2340.6,1.54879598]
[1725935298518,0.79679,2340.8,2340.7,1.89888598]
[1725935298814,11.47863546,2340.8,2340.7,1.89888598]
[1725935299209,11.47863546,2340.8,2340.7,0.7773]
[1725935307722,11.47863546,2340.8,2340.7,2.4345]
[1725935307723,10.68184546,2340.8,2340.7,2.4345]
[1725935311324,11.10902546,2340.8,2340.7,2.4345]
[1725935311621,11.10902546,2340.8,2340.7,0.7773]
[1725935312223,10.68184546,2340.8,2340.7,1.2045]
[1725935313433,10.68184546,2340.8,2340.7,2.4345]
[1725935318224,11.10902546,2340.8,2340.7,2.0073]
[1725935318532,11.48422546,2340.8,2340.7,2.4345]
[1725935318727,11.48422546,2340.8,2340.7,1.2045]
[1725935323847,11.05704546,2340.8,2340.7,1.2045]
[1725935325057,11.48422546,2340.8,2340.7,1.2045]
[1725935329456,11.05704546,2340.8,2340.7,1.2045]
[1725935330852,11.48422546,2340.8,2340.7,1.2045]
[1725935332149,11.48422546,2340.8,2340.7,0.7773]
[1725935332349,11.48422546,2340.8,2340.7,1.2045]
[1725935340459,0.80238,2340.8,2340.7,1.2045]
[1725935340666,0.80238,2340.8,2340.7,0.7773]
[1725935340858,0.80238,2340.8,2340.7,1.2045]
[1725935341966,0.80238,2340.8,2340.7,0.7773]
[1725935342960,0.3752,2340.8,2340.7,0.7773]
[1725935343259,0.3752,2340.8,2340.7,1.2045]
[1725935344070,0.3752,2340.8,2340.7,2.4345]
[1725935344965,0.3752,2340.8,2340.7,6.27310833]
[1725935345761,0.3752,2340.8,2340.7,9.48016447]
[1725935346168,0.79017,2340.9,2340.8,0.42718]
[1725935346362,0.79017,2340.9,2340.8,3.71148066]
[1725935347466,0.79017,2340.9,2340.8,3.71139344]
[1725935348966,0.79017,2340.9,2340.8,3.28421344]
[1725935350366,0.79017,2340.9,2340.8,3.71139344]
[1725935350560,0.81282,2341.2,2341.0,0.42713]
[1725935350763,0.3814,2341.3,2341.2,0.42711]
[1725935350963,0.3814,2341.3,2341.2,3.71076917]
[1725935351374,0.3814,2341.3,2341.2,3.70925948]
[1725935351568,0.3814,2341.3,2341.2,4.08525948]
[1725935351968,0.3814,2341.3,2341.2,0.80311]
[1725935353474,0.099,2341.8,2341.2,10.6472]
[1725935353666,0.3751,2341.8,2341.7,1.65701]
[1725935354469,0.8021,2341.8,2341.7,1.23]
[1725935354974,0.8021,2341.8,2341.7,0.3661]
[1725935356981,0.3751,2341.8,2341.7,0.3661]
[1725935357173,0.8021,2341.8,2341.7,0.3661]
[1725935357371,0.3751,2341.8,2341.7,2.02311]
[1725935357571,0.8021,2341.8,2341.7,2.02311]
[1725935358282,0.3751,2341.8,2341.7,2.02311]
[1725935361279,0.8021,2341.8,2341.7,0.3661]
[1725935362573,0.3751,2341.8,2341.7,0.3661]
[1725935362779,0.8021,2341.8,2341.7,0.3661]
[1725935363776,0.3751,2341.8,2341.7,0.3661]
[1725935363978,0.3751,2341.8,2341.7,0.79311]
[1725935364174,0.3751,2341.8,2341.7,0.3661]
[1725935365383,0.3751,2341.8,2341.7,1.5961]
[1725935365585,0.3751,2341.8,2341.7,2.02311]
[1725935366381,0.3751,2341.8,2341.7,1.5961]
[1725935367689,0.3751,2341.8,2341.7,2.02311]
[1725935369584,0.3751,2341.8,2341.7,1.5961]
[1725935369886,0.3751,2341.8,2341.7,2.02311]
[1725935370983,0.3751,2341.8,2341.7,1.5961]
[1725935371784,0.3751,2341.8,2341.5,0.3841]
[1725935371785,0.3751,2341.8,2341.5,1.6141]
[1725935371985,0.8021,2341.8,2341.6,0.42703]
[1725935372191,0.3907,2341.7,2341.6,0.42703]
[1725935372687,0.3751,2341.8,2341.6,0.42703]
[1725935372891,0.3751,2341.8,2341.7,0.42701]
[1725935374192,0.3751,2341.8,2341.7,1.65701]
[1725935377694,0.8021,2341.8,2341.7,1.23]
[1725935377995,0.3751,2341.8,2341.7,1.65701]
[1725935379584,0.8021,2341.8,2341.7,1.23]
[1725935380793,0.3751,2341.8,2341.7,1.65701]
[1725935381595,0.8021,2341.8,2341.7,1.65701]
[1725935381785,0.3751,2341.8,2341.7,1.65701]
[1725935386792,0.8021,2341.8,2341.7,1.65701]
[1725935386996,0.3751,2341.8,2341.7,1.65701]
[1725935387299,0.81659,2341.9,2341.7,1.657]
[1725935387696,0.81659,2341.9,2341.8,0.3966]
[1725935390303,0.81659,2341.9,2341.8,0.8236]
[1725935390503,0.81659,2341.9,2341.8,0.3966]
[1725935393507,0.3896,2341.9,2341.8,0.8236]
[1725935393808,0.81658,2341.9,2341.8,0.3966]
[1725935394511,0.81658,2341.9,2341.8,0.8236]
[1725935394512,0.3896,2341.9,2341.8,0.8236]
[1725935395605,0.81658,2341.9,2341.8,0.3966]
[1725935396005,0.42701,2341.8,2341.6,0.42702]
[1725935396505,0.3828,2341.7,2341.6,0.42702]
[1725935397413,0.3828,2341.7,2341.6,3.70394472]
[1725935397614,0.3828,2341.7,2341.6,2.0250839]
[1725935398516,0.3828,2341.7,2341.6,4.26004563]
[1725935398707,0.3828,2341.7,2341.6,3.83302563]
[1725935399005,0.3828,2341.7,2341.6,4.26005563]
[1725935399412,0.3828,2341.7,2341.6,7.45950749]
[1725935400210,0.80981,2341.7,2341.6,7.03247749]
[1725935400414,6.36440185,2341.7,2341.6,3.27842282]
[1725935400606,15.30962464,2341.7,2341.4,1.09246553]
[1725935400807,11.03922464,2341.7,2341.4,1.68035892]
[1725935401010,0.42704,2341.6,2341.4,2.42815892]
[1725935401224,0.42704,2341.6,2341.4,4.08522892]
[1725935401411,0.81658,2341.9,2341.6,0.42702]
[1725935401707,1.21659,2341.9,2341.6,3.33738892]
[1725935401915,1.21659,2341.9,2341.7,0.7506]
[1725935402100,1.21659,2341.9,2341.8,0.3682]
[1725935403919,0.427,2341.8,2341.7,0.3633]
[1725935404119,1.21659,2341.9,2341.7,0.3633]
[1725935405709,0.427,2341.8,2341.7,0.3633]
[1725935405914,1.21659,2341.9,2341.7,0.3633]
[1725935407515,0.427,2341.8,2341.7,0.3633]
[1725935408213,1.21659,2341.9,2341.7,0.3633]
[1725935408514,1.21659,2341.9,2341.7,0.79031]
[1725935408819,0.7896,2341.9,2341.8,0.3763]
[1725935409018,1.21658,2341.9,2341.8,0.3763]
[1725935410112,0.7896,2341.9,2341.8,0.3763]
[1725935410812,0.7896,2341.9,2341.8,1.1915]
[1725935411115,0.4,2341.9,2341.8,0.7645]
[1725935411336,0.099,2342.3,2341.8,1.9945]
[1725935411618,0.7479,2342.3,2342.2,1.23]
[1725935411812,0.7479,2342.3,2342.2,1.6297]
[1725935412121,10.65630062,2342.3,2342.2,2.45872]
[1725935412317,0.3772,2342.5,2342.2,2.45872]
[1725935412709,0.3772,2342.5,2342.3,1.23]
[1725935413011,0.3772,2342.5,2342.3,2.0451]
[1725935413215,0.3772,2342.5,2342.3,1.6182]
[1725935413717,0.3772,2342.5,2342.3,0.3882]
[1725935414116,0.3772,2342.5,2342.3,1.6182]
[1725935415320,0.3772,2342.5,2342.3,2.0451]
[1725935415922,0.3772,2342.5,2342.3,1.6182]
[1725935416119,0.099,2342.9,2342.7,1.06709]
[1725935416317,0.3887,2343.6,2342.8,5.4129]
[1725935416511,0.3887,2343.6,2343.1,1.23]
[1725935416512,0.375,2343.5,2343.1,1.23]
[1725935416715,0.42671,2343.4,2343.2,1.23]
[1725935417219,11.84865398,2343.5,2343.2,1.23]
[1725935417723,11.84865398,2343.5,2343.2,1.6093]
[1725935417916,0.42672,2343.4,2343.3,0.3723]
[1725935420217,11.84865398,2343.5,2343.3,0.3723]
[1725935420928,0.4267,2343.4,2343.3,0.3723]
[1725935421626,11.84865398,2343.5,2343.3,0.3723]
[1725935422024,11.03685398,2343.5,2343.3,0.3723]
[1725935422225,10.66185398,2343.5,2343.4,1.23]
[1725935422426,0.58537028,2343.8,2343.5,0.42669]
[1725935422427,0.21677028,2343.8,2343.5,0.42669]
[1725935422627,0.3946,2343.9,2343.5,1.23]
[1725935422820,0.82121,2343.9,2343.7,1.23]
[1725935423131,0.82121,2343.9,2343.8,0.3785]
[1725935423327,4.661,2343.9,2343.8,0.3785]
[1725935423522,15.54681639,2343.9,2343.8,0.3785]
[1725935425624,15.12020639,2343.9,2343.8,0.3785]
[1725935426137,15.54681639,2343.9,2343.8,0.3785]
[1725935426718,10.85380639,2343.9,2343.8,0.3785]
[1725935426920,11.28041639,2343.9,2343.8,0.3785]
[1725935427124,10.45920639,2343.9,2343.8,2.03513]
[1725935427422,1.18755,2344.3,2343.8,1.6085]
[1725935427629,0.761,2344.3,2344.1,1.23]
[1725935427824,12.03547542,2344.3,2344.1,1.23]
[1725935428135,11.60893542,2344.3,2344.1,1.6281]
[1725935428325,11.21123542,2344.3,2344.1,1.6281]
[1725935428633,0.42656,2344.2,2343.9,0.7939]
[1725935428833,0.42656,2344.2,2343.9,2.422]
[1725935429732,0.42656,2344.2,2343.9,1.9954]
[1725935429928,0.42656,2344.2,2343.9,2.422]
[1725935430134,11.21123542,2344.3,2343.9,2.422]
[1725935430135,0.42658,2344.1,2343.9,1.9954]
[1725935430334,0.42658,2344.1,2343.9,1.23]
[1725935430636,0.3711,2344.0,2343.9,1.23]
[1725935430826,0.79769,2344.0,2343.9,1.23]
[1725935431144,4.6375,2344.0,2343.5,0.82567]
[1725935431434,4.6375,2344.0,2343.6,1.18786]
[1725935431435,0.3946,2343.9,2343.6,1.18786]
[1725935431631,0.3946,2343.9,2343.7,1.23]
[1725935431833,0.42663,2343.8,2343.7,1.23]
[1725935433738,0.42663,2343.8,2343.6,0.7612]
[1725935433940,0.42664,2343.8,2343.6,0.7612]
[1725935435235,0.42664,2343.8,2343.6,1.18787]
[1725935435635,0.42664,2343.8,2343.6,0.7612]
[1725935436935,0.42664,2343.8,2343.6,1.18787]
[1725935440235,0.42664,2343.8,2343.6,1.18786]
[1725935441237,0.42665,2343.7,2343.6,0.7612]
[1725935445142,0.42664,2343.8,2343.6,0.7612]
[1725935445346,0.42664,2343.8,2343.7,1.23]
[1725935449145,0.42662,2343.9,2343.7,1.65664]
[1725935449346,0.42662,2343.9,2343.8,1.23]
[1725935450346,0.3711,2344.0,2343.8,1.23]
[1725935450546,1.06659,2343.8,2342.9,6.923]
[1725935450744,0.42678,2343.0,2342.9,5.312]
[1725935450941,0.42678,2343.0,2342.9,0.3876]
[1725935451144,0.4268,2342.9,2342.8,0.3905]
[1725935451547,10.49018699,2343.0,2342.8,0.3905]
[1725935451843,10.49018699,2343.0,2342.9,1.6568]
[1725935452046,10.49018699,2343.0,2342.9,1.23]
[1725935452243,10.49018699,2343.0,2342.8,3.4773]
[1725935452851,10.91696699,2343.0,2342.8,3.4773]
[1725935460957,10.91696699,2343.0,2342.8,0.3905]
[1725935460958,0.4268,2342.9,2342.8,0.3905]
[1725935461161,0.7897,2342.9,2342.8,0.3905]
[1725935461845,0.3629,2342.9,2342.8,0.81731]
[1725935462647,10.49018699,2343.0,2342.9,0.4268]
[1725935462847,0.3829,2343.3,2342.9,0.42678]
[1725935463055,0.42676,2343.1,2343.0,0.3726]
[1725935463559,0.42676,2343.1,2343.0,41.1726]
[1725935463853,0.42676,2343.1,2343.0,0.3726]
[1725935465856,0.099,2343.7,2343.6,0.42667]
[1725935466057,0.42659,2344.1,2343.7,0.42664]
[1725935466259,0.42659,2344.1,2343.7,0.42663]
[1725935466463,0.2100345,2344.2,2343.8,0.3829]
[1725935466762,0.4266,2344.0,2343.8,0.3829]
[1725935467059,0.64174938,2344.1,2343.8,0.3829]
[1725935467263,10.90562898,2344.2,2343.9,2.66]
[1725935467461,11.33219898,2344.2,2343.9,2.66]
[1725935467852,11.54656827,2344.2,2343.9,2.66]
[1725935468154,11.54655827,2344.2,2343.9,2.66]
[1725935468856,11.11999827,2344.2,2343.9,3.058]
[1725935469158,11.54655827,2344.2,2343.9,3.058]
[1725935470063,10.90562898,2344.2,2343.9,3.48461]
[1725935471055,0.099,2344.4,2344.2,0.42655]
[1725935471259,0.3833,2344.5,2344.2,3.08655]
[1725935471761,0.3833,2344.5,2344.3,0.3855]
[1725935472452,0.3902,2344.6,2344.3,0.81203]
[1725935472657,0.3902,2344.6,2344.4,0.3938]
[1725935473156,1.01203986,2344.8,2344.4,0.3938]
[1725935473157,0.3739,2344.8,2344.5,2.66]
[1725935473461,10.41836816,2344.6,2344.5,3.08649]
[1725935473963,0.3739,2344.8,2344.5,2.66]
[1725935474162,0.3739,2344.8,2344.7,2.66]
[1725935474460,0.72642,2345.0,2344.7,2.66]
[1725935474461,0.3,2345.0,2344.7,3.08646]
[1725935474667,0.3,2345.0,2344.9,2.66]
[1725935477559,0.3,2345.0,2344.9,3.0596]
[1725935478364,0.3,2345.0,2344.9,3.48603]
[1725935478667,0.3,2345.0,2344.9,3.0596]
[1725935479368,0.3,2345.0,2344.9,3.48603]
[1725935480560,0.3,2345.0,2344.9,7.75083]
[1725935480968,0.099,2345.4,2344.9,13.3244]
[1725935481274,0.998,2346.0,2345.3,2.66]
[1725935481565,0.998,2346.0,2345.0,4.6331]
[1725935481566,0.784,2346.0,2345.5,2.66]
[1725935481772,10.51498564,2345.9,2345.5,2.66]
[1725935486262,10.94123564,2345.9,2345.5,2.66]
[1725935486971,10.94123564,2345.9,2345.0,4.4511]
[1725935486972,0.42632,2345.6,2345.0,4.4511]
[1725935487169,1.1519,2345.5,2345.0,4.8422]
[1725935487476,1.1519,2345.5,2345.1,2.66]
[1725935488470,0.7835,2345.5,2345.3,2.66]
[1725935489171,0.79468,2345.8,2345.3,2.66]
[1725935489379,0.3684,2345.8,2345.3,2.66]
[1725935489580,11.19127682,2345.7,2345.3,2.66]
[1725935489777,0.42631,2345.6,2345.3,2.66]
[1725935490376,0.3736,2345.5,2345.3,2.66]
[1725935490866,0.3727,2345.4,2345.3,2.66]
[1725935491064,0.3727,2345.4,2345.2,0.3934]
[1725935491677,0.3727,2345.4,2345.1,2.66]
[1725935492677,0.3727,2345.4,2345.1,3.08639]
[1725935493072,0.3727,2345.4,2345.1,2.66]
[1725935493484,0.3727,2345.4,2345.1,3.08639]
[1725935494082,0.3727,2345.4,2345.2,0.42637]
[1725935494285,0.3727,2345.4,2345.1,2.66]
[1725935494286,0.3727,2345.4,2345.1,3.08638]
[1725935496677,0.79905,2345.4,2345.1,3.08639]
[1725935498387,0.3727,2345.4,2345.1,3.08639]
[1725935498884,0.79904,2345.4,2345.1,3.08639]
[1725935499281,0.7655,2345.4,2345.1,3.08639]
[1725935499476,1.19184,2345.4,2345.1,3.08639]
[1725935499782,0.42636,2345.3,2345.0,0.81751]
[1725935499984,0.42636,2345.3,2344.9,3.0464]
[1725935499985,0.42638,2345.2,2344.9,0.3864]
[1725935500179,0.42638,2345.2,2344.9,0.81283]
[1725935500383,10.56988657,2345.3,2344.9,0.81283]
[1725935500384,0.82379,2345.1,2344.9,0.3864]
[1725935500580,0.3974,2345.1,2344.9,0.3864]
[1725935500881,0.3974,2345.1,2344.9,0.81283]
[1725935501285,0.3974,2345.1,2345.0,0.42641]
[1725935501681,10.99625657,2345.3,2345.0,0.42641]
[1725935502381,10.99625657,2345.3,2344.9,3.47282]
[1725935503476,10.99625657,2345.3,2345.0,0.42641]
[1725935503882,0.42638,2345.2,2345.0,0.42641]
[1725935504283,10.56988657,2345.3,2344.9,3.0464]
[1725935504475,10.99624657,2345.3,2345.0,0.4264]
[1725935505174,10.99624657,2345.3,2345.1,0.42639]
[1725935506183,10.99624657,2345.3,2345.0,0.4264]
[1725935506687,10.99624657,2345.3,2345.0,0.42641]
[1725935506889,10.99624657,2345.3,2345.1,0.42639]
[1725935508390,10.56988657,2345.3,2345.1,0.42639]
[1725935508992,10.99624657,2345.3,2345.1,0.42639]
[1725935509585,10.56988657,2345.3,2345.1,0.42639]
[1725935511890,10.56988657,2345.3,2344.9,3.0464]
[1725935512098,10.56988657,2345.3,2345.1,0.42639]
[1725935512890,10.99624657,2345.3,2345.1,0.42639]
[1725935513090,10.56988657,2345.3,2345.1,0.42639]
[1725935514800,10.99624657,2345.3,2345.1,0.42639]
[1725935515594,10.56988657,2345.3,2345.1,0.42639]
[1725935516590,10.99625657,2345.3,2345.0,0.4264]
[1725935516898,10.99625657,2345.3,2344.9,3.0464]
[1725935517085,10.99625657,2345.3,2345.1,0.42639]
[1725935517792,10.99625657,2345.3,2344.9,3.0464]
[1725935518300,10.99625657,2345.3,2345.1,0.42639]
[1725935521306,10.56988657,2345.3,2345.1,0.42639]
[1725935521490,10.56988657,2345.3,2344.9,3.0464]
[1725935521689,10.56988657,2345.3,2345.1,0.42638]
[1725935522400,10.56988657,2345.3,2344.9,3.0464]
[1725935522700,10.56988657,2345.3,2345.1,0.42638]
[1725935522995,10.56988657,2345.3,2345.0,0.42641]
[1725935523198,10.56988657,2345.3,2345.1,0.42638]
[1725935523502,10.56988657,2345.3,2345.2,0.42638]
[1725935523907,0.099,2345.7,2345.6,0.4263]
[1725935524193,0.214,2346.0,2345.6,0.4263]
[1725935524194,0.099,2346.0,2345.9,0.42625]
[1725935524399,0.4,2346.1,2346.0,0.42623]
[1725935524593,0.3712,2346.3,2346.0,0.42623]
[1725935524788,0.79738,2346.3,2346.0,0.80753]
[1725935524994,0.3712,2346.3,2346.0,0.80753]
[1725935525195,0.099,2346.5,2346.4,0.42616]
[1725935525398,0.30897341,2346.8,2346.2,2.66]
[1725935525603,0.79735,2346.5,2346.0,3.46752]
[1725935525903,0.42617,2346.4,2346.1,40.8]
[1725935526098,0.5910071,2346.4,2346.1,40.8]
[1725935526302,0.3741,2346.4,2346.1,43.8862]
[1725935526498,0.3712,2346.5,2346.2,0.81008]
[1725935526693,0.3712,2346.5,2346.3,3.08618]
[1725935527399,0.3741,2346.8,2346.4,0.42616]
[1725935527702,0.42611,2346.7,2346.3,2.66]
[1725935527909,1.16969,2346.8,2346.3,2.66]
[1725935528403,0.42611,2346.7,2346.3,2.66]
[1725935528900,0.42613,2346.6,2346.3,2.66]
[1725935529121,0.382,2346.5,2346.2,0.3839]
[1725935529398,0.382,2346.5,2346.0,0.3813]
[1725935529399,0.3753,2346.4,2346.0,0.3813]
[1725935529606,1.17096,2346.4,2346.0,0.3813]
[1725935529808,0.7448,2346.4,2345.9,3.0479]
[1725935529999,0.42622,2346.1,2345.7,2.66]
[1725935530304,0.7448,2346.4,2345.6,41.5757]
[1725935530305,1.1573,2346.0,2345.6,41.5757]
[1725935530497,1.58353,2346.0,2345.6,0.7757]
[1725935531205,1.1573,2346.0,2345.7,2.66]
[1725935531503,1.1573,2346.0,2345.7,3.0325]
[1725935531705,1.1573,2346.0,2345.7,3.45878]
[1725935532508,1.1573,2346.0,2345.7,3.0325]
[1725935533101,1.1573,2346.0,2345.7,3.45878]
[1725935533602,1.1573,2346.0,2345.7,3.0325]
[1725935533810,1.58353,2346.0,2345.7,3.0325]
[1725935534497,1.58354,2346.0,2345.6,0.7757]
[1725935534693,1.1573,2346.0,2345.6,0.7757]
[1725935534892,1.58354,2346.0,2345.6,0.7757]
[1725935535099,1.58354,2346.0,2345.6,1.202]
[1725935535309,1.1573,2346.0,2345.6,0.7757]
[1725935535615,1.58354,2346.0,2345.6,1.202]
[1725935535901,1.1573,2346.0,2345.6,0.7757]
[1725935536104,0.42625,2345.9,2345.6,0.7757]
[1725935536706,1.1573,2346.0,2345.6,0.7757]
[1725935536904,0.42626,2345.9,2345.6,0.7757]
[1725935539310,0.42626,2345.9,2345.6,1.202]
[1725935539911,0.42626,2345.9,2345.7,2.66]
[1725935543819,1.1573,2346.0,2345.7,2.66]
[1725935544010,0.42626,2345.9,2345.7,2.66]
[1725935545502,0.42627,2345.8,2345.7,2.66]
[1725935553021,0.42625,2345.9,2345.7,2.66]
[1725935553223,1.1573,2346.0,2345.7,2.66]
[1725935553422,0.42625,2345.9,2345.7,2.66]
[1725935553622,1.1573,2346.0,2345.7,2.66]